bitfinex/quotes_ETHUSD_20240530
["timestamp","ask_amount","ask_price","bid_price","bid_amount"]
[1717097527925,0.795,3789.6,3789.1,2.9294478]
[1717097528151,0.795,3789.6,3789.1,2.63914]
[1717097528356,3.0,3790.1,3789.1,2.63914]
[1717097533932,3.0,3790.1,3789.3,2.63894]
[1717097534231,5.7685,3790.8,3789.8,2.63865]
[1717097534819,2.638,3790.8,3789.8,2.63865]
[1717097535126,2.638,3790.8,3789.8,3.83485096]
[1717097535538,2.63775,3791.1,3790.1,2.63845]
[1717097536962,3.0,3791.0,3790.1,2.63845]
[1717097541021,2.6379,3790.9,3790.1,2.63845]
[1717097542683,1.907,3790.3,3789.6,6.27155958]
[1717097542979,1.907,3789.9,3789.2,18.48155958]
[1717097543175,1.907,3789.9,3788.9,2.63926]
[1717097543479,1.92431734,3789.9,3788.9,2.63926]
[1717097543684,1.907,3789.5,3788.9,2.63926]
[1717097544032,1.907,3789.5,3788.9,3.29648955]
[1717097544663,3.0,3789.8,3788.9,3.29648955]
[1717097544992,2.63876,3789.7,3788.9,3.29648955]
[1717097545171,2.63876,3789.7,3788.9,0.65722955]
[1717097550366,2.6385,3790.1,3789.0,2.63921]
[1717097550571,3.0,3790.0,3789.3,5.77866]
[1717097551961,2.63794,3790.9,3789.6,2.63873]
[1717097552166,1.907,3790.8,3789.6,3.216573]
[1717097552604,2.63794,3790.9,3789.6,3.216573]
[1717097552909,4.54494,3790.9,3789.6,3.216573]
[1717097553109,4.54494,3790.9,3789.8,2.63861]
[1717097553297,4.54494,3790.9,3789.9,2.64560763]
[1717097554124,2.63805,3790.7,3789.8,2.63861]
[1717097557232,3.0,3790.8,3789.8,2.63861]
[1717097557427,2.63782,3791.1,3789.8,2.63861]
[1717097557428,3.0,3791.0,3789.8,2.63861]
[1717097557890,3.0,3791.0,3790.1,2.63843]
[1717097558232,3.0,3791.0,3790.2,0.263843]
[1717097558990,3.0,3791.0,3790.3,2.63829]
[1717097560727,4.54482,3791.1,3790.3,2.63829]
[1717097560935,3.1205,3791.6,3790.3,2.63829]
[1717097560936,4.54452,3791.5,3790.3,2.63829]
[1717097561234,3.0,3791.4,3790.3,2.63829]
[1717097561423,3.0,3791.4,3790.4,0.5764633]
[1717097563034,1.90318632,3792.0,3790.6,2.63805]
[1717097563355,2.63703,3792.2,3790.7,2.9183]
[1717097563538,2.63703,3792.2,3790.8,35.0]
[1717097563709,4.54403,3792.2,3790.9,2.64560763]
[1717097563913,4.54403,3792.2,3791.1,2.63775]
[1717097565027,3.0,3792.1,3791.1,2.63775]
[1717097565227,2.63713,3792.0,3791.1,2.63775]
[1717097565538,1.907,3791.8,3791.1,2.63775]
[1717097565851,3.0,3791.9,3791.1,2.901525]
[1717097571659,4.54413,3792.0,3791.1,2.901525]
[1717097572192,2.63713,3792.0,3791.1,2.901525]
[1717097574121,5.63687,3792.4,3791.5,2.9134]
[1717097574262,5.63687,3792.4,3791.6,2.92869]
[1717097574667,2.63687,3792.4,3791.6,2.92869]
[1717097576202,2.63664,3792.7,3791.6,2.92869]
[1717097576528,3.0,3792.6,3791.6,2.92869]
[1717097576732,3.0,3792.6,3791.8,2.63725]
[1717097577019,3.0,3792.6,3792.0,2.63712]
[1717097577205,2.63664,3792.7,3792.0,2.63712]
[1717097578125,6.0,3793.0,3792.0,2.63712]
[1717097578283,3.0,3792.9,3792.0,2.63712]
[1717097578482,3.0,3792.9,3792.1,0.263712]
[1717097578925,3.0,3792.9,3792.3,2.63689]
[1717097579077,3.0,3793.0,3792.3,2.63689]
[1717097582624,3.0,3793.0,3792.6,2.63667]
[1717097582779,3.0,3793.0,3792.2,3.0478]
[1717097582780,5.63645,3793.0,3792.2,5.68476]
[1717097582976,4.907,3792.9,3791.9,6.27155958]
[1717097583521,2.6366,3792.8,3791.9,6.27155958]
[1717097584114,2.6366,3792.8,3792.0,2.63712]
[1717097585381,3.0,3792.9,3792.0,2.63712]
[1717097585583,3.0,3793.0,3792.6,2.63668]
[1717097585827,3.0,3793.0,3791.9,7.47189754]
[1717097585828,3.0,3793.0,3792.7,3.1378]
[1717097586933,3.0,3793.0,3792.8,2.63657]
[1717097587234,3.0,3793.0,3792.2,3.1184]
[1717097588299,3.0,3793.0,3792.3,2.6369]
[1717097588527,3.0,3793.0,3792.2,3.1184]
[1717097588528,3.0,3793.0,3792.6,2.6367]
[1717097594029,3.0,3793.0,3792.9,2.6365]
[1717097596537,3.0,3793.0,3792.9,5.6685]
[1717097596747,3.0,3793.0,3792.9,6.23535]
[1717097601048,3.0,3793.0,3792.9,3.20335]
[1717097601249,3.0,3793.0,3792.9,2.6365]
[1717097602085,3.0,3793.0,3791.9,6.27155958]
[1717097602392,1.907,3792.5,3791.9,6.27155958]
[1717097602591,2.43993597,3792.5,3791.5,6.27155958]
[1717097602792,2.63696,3792.3,3791.5,6.27155958]
[1717097602991,3.16989597,3792.3,3791.5,6.27155958]
[1717097603194,3.45983597,3792.2,3791.5,6.27155958]
[1717097603596,2.9269,3792.2,3791.5,6.89871554]
[1717097605296,2.63696,3792.3,3791.5,6.89871554]
[1717097605496,2.8813,3792.7,3791.5,6.89871554]
[1717097605799,3.0,3792.9,3791.6,2.8751]
[1717097606008,3.0,3793.0,3791.7,0.97738155]
[1717097606215,3.0,3793.0,3791.7,35.97738155]
[1717097607076,3.0,3793.0,3792.1,2.63702]
[1717097607804,3.0,3793.0,3792.5,2.63675]
[1717097608175,3.0,3793.0,3792.5,37.63675]
[1717097608382,3.0,3793.0,3792.6,2.64560763]
[1717097611441,3.0,3793.0,3792.5,2.63675]
[1717097616067,2.6365,3792.9,3792.1,2.63701]
[1717097617075,2.6365,3792.9,3792.0,6.27155958]
[1717097617416,2.63673,3792.6,3792.0,6.27155958]
[1717097618908,2.63686,3792.4,3792.0,6.27155958]
[1717097620502,2.63686,3792.4,3791.5,6.89871554]
[1717097621100,2.63703,3792.2,3791.5,6.89871554]
[1717097621285,2.63703,3792.2,3791.5,6.27155958]
[1717097626393,2.63703,3792.2,3791.1,18.48155958]
[1717097628637,2.63722,3791.9,3791.1,18.48155958]
[1717097629141,3.0485,3791.8,3791.1,6.27155958]
[1717097630133,2.63734,3791.7,3791.1,6.27155958]
[1717097631648,1.907,3791.7,3790.6,6.27155958]
[1717097631848,4.907,3791.7,3790.6,6.27155958]
[1717097632017,2.63769,3791.2,3790.6,6.27155958]
[1717097632223,2.63769,3791.2,3790.6,7.36192208]
[1717097634109,2.63769,3791.2,3790.7,35.0]
[1717097635432,2.63745,3791.6,3790.7,35.0]
[1717097637398,2.63745,3791.6,3790.8,2.63796]
[1717097637949,2.63745,3791.6,3790.9,35.0]
[1717097638353,2.63745,3791.6,3790.9,37.64560763]
[1717097641154,2.63716,3792.0,3791.0,2.63777]
[1717097641864,2.63716,3792.0,3791.2,2.63765]
[1717097642196,5.8365,3792.3,3791.2,2.63765]
[1717097642413,2.63706,3792.1,3791.2,2.63765]
[1717097642613,2.63706,3792.1,3791.3,35.0]
[1717097642782,2.63706,3792.1,3791.4,2.63753]
[1717097651625,2.63686,3792.4,3791.4,2.63753]
[1717097659166,2.63686,3792.4,3791.2,0.263765]
[1717097660108,2.63686,3792.4,3791.4,2.63753]
[1717097660302,2.63686,3792.4,3791.4,2.9276595]
[1717097662268,2.63704,3792.2,3791.4,2.63753]
[1717097664395,0.793,3792.0,3791.4,2.63753]
[1717097666024,0.793,3792.2,3791.4,2.63753]
[1717097666395,4.54686128,3792.9,3791.5,3.0819]
[1717097666624,0.793,3793.1,3792.4,2.63684]
[1717097666831,5.33959128,3793.3,3792.4,2.63684]
[1717097666987,3.42928,3793.3,3792.4,2.63684]
[1717097668549,2.63628,3793.3,3792.4,2.63684]
[1717097669548,3.0,3793.5,3792.6,2.63664]
[1717097670723,2.63615,3793.4,3792.6,2.63664]
[1717097671153,5.67967,3793.1,3792.3,2.63691]
[1717097671318,2.65387734,3792.9,3792.0,8.90868958]
[1717097671520,2.63656,3792.9,3792.0,8.90868958]
[1717097671941,2.63671,3792.6,3792.0,6.27155958]
[1717097676152,2.63671,3792.6,3791.7,2.63733]
[1717097676356,2.63671,3792.6,3791.7,5.28293763]
[1717097676650,2.63691,3792.4,3791.6,6.27155958]
[1717097677056,2.63702,3792.2,3791.6,6.27155958]
[1717097677761,2.63721,3791.9,3791.1,18.48155958]
[1717097678692,2.6374,3791.7,3791.1,18.48155958]
[1717097678973,2.63757,3791.4,3791.1,18.48155958]
[1717097679119,2.63757,3791.4,3790.6,20.66468527]
[1717097679748,2.63757,3791.4,3790.6,18.02663527]
[1717097679921,4.7883,3791.6,3790.4,6.27155958]
[1717097679922,2.63768,3791.2,3790.4,6.27155958]
[1717097680126,2.63783,3791.0,3790.4,6.27155958]
[1717097681617,3.0,3791.3,3790.4,6.27155958]
[1717097681818,3.0,3791.3,3790.5,0.89098896]
[1717097684423,2.63728,3791.8,3790.6,2.9989]
[1717097684665,2.63746,3791.6,3790.6,2.9989]
[1717097684865,3.0,3791.5,3790.6,2.9989]
[1717097685083,2.63746,3791.6,3790.7,2.64560763]
[1717097685364,2.63746,3791.6,3790.8,0.0527508]
[1717097685722,2.63746,3791.6,3790.7,2.64560763]
[1717097685922,2.63746,3791.6,3790.8,2.63795]
[1717097686531,2.63716,3792.0,3790.8,2.63795]
[1717097686730,3.0,3791.9,3791.0,2.63776]
[1717097686945,2.63716,3792.0,3791.0,2.63776]
[1717097689500,2.63716,3792.0,3791.1,35.0]
[1717097690373,2.63716,3792.0,3791.2,2.63768]
[1717097691964,2.63735,3791.7,3790.9,6.27155958]
[1717097693589,2.63735,3791.7,3790.9,8.00612682]
[1717097693792,2.63735,3791.7,3790.9,6.27155958]
[1717097696596,5.70084,3791.5,3790.9,6.27155958]
[1717097697553,2.63754,3791.5,3790.9,6.27155958]
[1717097698663,3.0088,3791.9,3791.0,3.089]
[1717097698664,2.63726,3791.9,3791.0,3.089]
[1717097698873,3.0,3791.8,3791.0,4.28885496]
[1717097700313,2.63735,3791.7,3791.0,3.089]
[1717097702495,2.63754,3791.4,3790.9,6.27155958]
[1717097702976,3.0777,3791.7,3790.3,8.90979958]
[1717097702977,2.63776,3791.1,3790.3,8.90979958]
[1717097703369,2.63776,3791.1,3790.3,6.27155958]
[1717097707530,3.0,3791.3,3790.3,11.02183754]
[1717097707820,2.63762,3791.3,3790.3,11.02183754]
[1717097708381,2.63762,3791.3,3790.3,8.90982958]
[1717097709434,2.63784,3791.0,3790.3,8.90982958]
[1717097713689,2.63784,3791.0,3790.3,6.27155958]
[1717097714295,2.63784,3791.0,3790.0,12.21]
[1717097715572,2.63803,3790.7,3790.0,12.21]
[1717097720177,2.63803,3790.7,3789.9,6.27155958]
[1717097721224,2.63803,3790.7,3790.0,0.89102196]
[1717097721616,2.63803,3790.7,3789.9,6.27155958]
[1717097725992,2.63824,3790.4,3789.9,6.27155958]
[1717097726197,5.60344,3790.4,3789.9,6.27155958]
[1717097726396,2.63841,3790.2,3789.4,24.29819485]
[1717097726598,3.01731734,3790.1,3789.4,6.27155958]
[1717097726804,3.0,3790.1,3789.4,6.27155958]
[1717097728078,2.63853,3790.0,3789.4,6.27155958]
[1717097730302,3.0,3789.9,3789.4,6.27155958]
[1717097731079,2.63867,3789.8,3789.4,6.27155958]
[1717097731702,0.05538957,3789.7,3789.4,6.27155958]
[1717097731864,2.63867,3789.8,3788.9,2.63924]
[1717097734585,2.63867,3789.8,3788.9,4.75131996]
[1717097735842,3.0,3789.9,3788.9,4.75131996]
[1717097736039,0.0558795,3789.8,3788.9,4.75131996]
[1717097736240,3.0,3790.0,3788.9,4.75131996]
[1717097736441,0.05559934,3789.7,3788.9,4.75131996]
[1717097736646,5.66025,3790.6,3789.0,5.42418795]
[1717097736889,3.0,3790.5,3789.0,5.42418795]
[1717097737272,0.05471185,3790.4,3789.8,2.63864]
[1717097737689,2.63815,3790.6,3789.8,2.63864]
[1717097737905,1.903,3789.9,3788.5,0.4132868]
[1717097738199,1.903,3789.9,3787.5,2.64023]
[1717097738200,4.54226,3789.0,3787.5,2.64023]
[1717097738350,2.63948,3788.7,3787.5,3.53140896]
[1717097738544,3.0,3788.6,3787.5,2.64023]
[1717097738855,3.05312012,3788.6,3787.5,2.64023]
[1717097739286,3.05312012,3788.6,3787.0,0.41338595]
[1717097739287,2.63962,3788.5,3787.0,2.64056]
[1717097739479,2.63971,3788.3,3787.0,2.64056]
[1717097739680,0.05301462,3788.2,3787.0,2.64056]
[1717097739900,0.05301462,3788.2,3787.2,2.64046]
[1717097743197,0.05301462,3788.2,3787.5,2.64022]
[1717097743576,3.0,3788.6,3787.5,2.64022]
[1717097743822,0.05245973,3788.1,3787.5,2.64022]
[1717097744116,3.0,3788.6,3787.8,2.64002]
[1717097744330,2.63945,3788.7,3787.8,2.64002]
[1717097744331,0.0526564,3788.5,3787.8,2.64002]
[1717097744510,0.0526564,3788.5,3788.0,2.63985]
[1717097744818,3.0,3789.0,3788.0,2.63985]
[1717097745127,2.63918,3789.1,3788.0,2.63985]
[1717097745299,0.05301816,3788.9,3788.0,2.63985]
[1717097745830,2.63918,3789.1,3788.0,2.63985]
[1717097746125,0.05296313,3788.8,3788.1,0.2903852]
[1717097746285,3.05307319,3789.0,3788.1,0.2903852]
[1717097746628,3.05307319,3789.0,3788.0,2.63985]
[1717097748883,0.05307319,3789.0,3788.0,2.63985]
[1717097749627,2.64072,3786.9,3786.0,0.55118059]
[1717097749851,2.64072,3786.9,3785.5,0.04591304]
[1717097750123,2.64072,3786.9,3784.7,4.90913208]
[1717097750124,2.64125,3786.1,3784.9,2.64201]
[1717097750330,0.04930858,3786.0,3785.0,0.562201]
[1717097750483,2.64139,3785.9,3785.0,0.562201]
[1717097750684,3.04938455,3785.8,3784.4,2.64237]
[1717097751930,3.04938455,3785.8,3784.7,2.64216]
[1717097752083,0.04938455,3785.8,3784.9,2.64205]
[1717097752285,3.0,3786.2,3785.0,0.26948781]
[1717097752524,0.04828963,3786.1,3785.0,0.26948781]
[1717097752686,0.04828963,3786.1,3785.1,2.6419]
[1717097753034,0.04828963,3786.1,3785.5,2.64164]
[1717097753196,0.04828963,3786.1,3785.6,0.264164]
[1717097753379,2.64098,3786.5,3785.5,2.64164]
[1717097753817,0.04848876,3786.4,3785.5,2.64164]
[1717097754330,3.04848876,3786.4,3785.5,2.64164]
[1717097755285,2.6411,3786.3,3785.2,6.27155958]
[1717097755489,0.04840891,3786.2,3785.2,7.49528332]
[1717097755695,2.6411,3786.3,3785.2,7.49528332]
[1717097755924,0.04840891,3786.2,3785.2,7.49528332]
[1717097758404,0.04840891,3786.2,3785.3,2.64173]
[1717097761606,5.60496,3786.1,3785.2,6.27155958]
[1717097761811,0.01731734,3786.0,3785.2,6.27155958]
[1717097762146,0.0466823,3785.9,3785.2,6.27155958]
[1717097762954,0.06399964,3785.9,3785.2,6.27155958]
[1717097763141,0.0466823,3785.9,3785.2,6.27155958]
[1717097763495,2.64146,3785.8,3785.2,6.27155958]
[1717097763701,2.64162,3785.6,3785.2,6.27155958]
[1717097763912,0.04639406,3785.5,3785.2,6.27155958]
[1717097765629,3.04639406,3785.5,3785.2,6.27155958]
[1717097766243,2.64172,3785.4,3785.2,6.27155958]
[1717097766441,2.64172,3785.4,3784.5,6.27155958]
[1717097766791,0.04617328,3785.3,3784.5,6.27155958]
[1717097767085,0.04617328,3785.3,3784.5,2.64560763]
[1717097767473,2.64172,3785.4,3784.5,2.64560763]
[1717097768575,5.64144,3785.9,3784.6,2.64228]
[1717097768860,5.64144,3785.9,3784.9,2.64203]
[1717097769065,0.0464393,3785.8,3784.9,2.64203]
[1717097769234,0.0464393,3785.8,3785.1,2.6419]
[1717097769624,3.0,3786.2,3785.1,2.6419]
[1717097769823,0.04504747,3785.7,3785.1,2.6419]
[1717097770037,2.64145,3785.8,3784.9,6.27155958]
[1717097770237,2.64183,3785.3,3784.9,6.27155958]
[1717097770533,0.04507731,3785.2,3784.3,8.91400958]
[1717097770868,3.04507731,3785.2,3784.3,8.91400958]
[1717097772348,5.18896,3785.1,3784.3,6.27155958]
[1717097772533,2.64213,3784.9,3784.3,6.27155958]
[1717097772874,2.64226,3784.7,3783.9,2.64273]
[1717097773309,0.04455645,3784.6,3783.9,2.64273]
[1717097774332,0.06187379,3784.6,3783.9,2.64273]
[1717097774636,1.95655645,3784.6,3783.9,2.64273]
[1717097774917,1.95655645,3784.6,3783.9,3.53415896]
[1717097775482,0.04455645,3784.6,3783.9,3.53415896]
[1717097775827,6.0932,3785.0,3784.2,2.64254]
[1717097775828,3.0,3785.0,3784.2,2.64254]
[1717097775988,0.04275439,3784.5,3784.2,2.64254]
[1717097776186,3.0,3785.4,3783.9,0.89142896]
[1717097776187,1.912,3784.7,3783.9,0.89142896]
[1717097776494,1.912,3784.7,3783.8,6.27155958]
[1717097777050,0.01731734,3784.6,3783.8,6.27155958]
[1717097777849,3.1577,3784.4,3783.1,0.2260945]
[1717097778065,1.912,3783.2,3783.1,0.2260945]
[1717097778192,5.0697,3783.2,3783.1,0.2260945]
[1717097778516,8.11131527,3783.2,3783.1,0.2260945]
[1717097781948,8.11131527,3783.2,3781.7,35.0]
[1717097782110,8.11131527,3783.2,3781.8,2.64560763]
[1717097782111,2.64351,3782.9,3781.8,2.64560763]
[1717097782310,0.04057455,3782.8,3782.0,2.64409]
[1717097782510,2.64306,3783.5,3782.0,3.1564]
[1717097782730,2.64306,3783.5,3782.0,2.1564]
[1717097782908,0.04090576,3783.4,3782.0,2.1564]
[1717097783143,0.04090576,3783.4,3782.1,35.27064]
[1717097783443,2.551,3784.4,3782.1,35.27064]
[1717097783444,2.9725,3784.4,3782.9,2.64342]
[1717097783592,5.61499,3784.4,3783.1,2.64331]
[1717097783798,0.04140237,3784.3,3783.1,2.64331]
[1717097783995,0.04140237,3784.3,3782.9,6.27155958]
[1717097783996,0.04140237,3784.3,3783.3,2.64318]
[1717097784348,2.64249,3784.4,3783.3,2.64318]
[1717097784640,0.03999796,3784.3,3783.3,2.64318]
[1717097784807,0.03999796,3784.3,3783.4,35.0]
[1717097785207,2.64249,3784.4,3783.4,35.0]
[1717097785422,2.64214,3784.8,3783.6,2.64297]
[1717097785615,0.03999796,3784.3,3783.6,2.64297]
[1717097785947,2.64214,3784.8,3783.6,2.64297]
[1717097786098,0.03905487,3784.7,3783.7,35.0]
[1717097786300,2.64214,3784.8,3783.7,35.0]
[1717097786738,0.03905487,3784.7,3783.7,35.0]
[1717097787038,2.64214,3784.8,3783.7,35.0]
[1717097787339,3.0,3784.7,3783.7,35.0]
[1717097787946,3.0,3784.7,3783.4,6.27155958]
[1717097787947,2.64268,3784.1,3783.4,6.27155958]
[1717097788099,3.0,3784.7,3783.4,0.62715596]
[1717097788295,0.03866872,3784.0,3783.5,2.643]
[1717097788496,0.03861354,3783.9,3783.6,35.0]
[1717097788798,3.0,3784.5,3783.6,35.0]
[1717097789194,0.03912811,3784.4,3783.5,2.643]
[1717097789398,2.64252,3784.3,3783.1,2.64332]
[1717097789641,3.0,3784.2,3783.1,3.226412]
[1717097789844,2.64273,3784.0,3783.1,2.64332]
[1717097790198,0.03885226,3783.9,3783.1,2.64332]
[1717097790745,2.64273,3784.0,3783.1,2.64332]
[1717097791646,3.0,3783.9,3783.1,2.64332]
[1717097793656,3.0,3783.9,3781.7,0.41394649]
[1717097793657,2.64392,3782.3,3781.7,0.41394649]
[1717097793955,2.64392,3782.3,3781.3,2.64459]
[1717097794174,3.03826777,3782.2,3781.3,0.264459]
[1717097794457,2.64406,3782.1,3780.9,2.64484]
[1717097794606,3.0,3782.0,3780.9,2.64484]
[1717097794809,3.03778351,3782.0,3780.9,2.64484]
[1717097795905,2.64419,3781.9,3780.9,2.64484]
[1717097796157,2.64419,3781.9,3781.0,0.264484]
[1717097796158,3.0,3781.8,3781.0,0.264484]
[1717097798254,2.64405,3782.1,3781.0,0.264484]
[1717097798455,3.0,3782.0,3781.0,0.264484]
[1717097798758,0.03703183,3781.9,3781.0,0.264484]
[1717097798953,0.03703183,3781.9,3781.1,35.0]
[1717097799271,3.0,3782.0,3781.2,2.64560763]
[1717097799629,3.0,3782.0,3781.0,0.264484]
[1717097799826,0.0357548,3781.9,3781.3,35.0]
[1717097800169,3.1244,3783.2,3781.4,3.02]
[1717097800364,2.6435,3782.9,3781.6,2.64432]
[1717097800857,2.6435,3782.9,3781.5,6.27155958]
[1717097800858,2.6435,3782.9,3782.0,2.64406]
[1717097801059,2.64322,3783.3,3782.1,0.264406]
[1717097801410,2.64322,3783.3,3782.0,2.64406]
[1717097801411,0.03575795,3783.2,3782.0,2.64406]
[1717097801663,2.64334,3783.1,3782.0,2.64406]
[1717097801983,2.64358,3782.8,3781.6,2.64434]
[1717097802327,3.0,3782.7,3781.6,2.64434]
[1717097803086,0.03553466,3782.6,3781.6,2.64434]
[1717097803232,5.68006,3782.5,3781.6,2.64434]
[1717097803432,3.01731734,3782.4,3781.6,2.64434]
[1717097803748,3.03484828,3782.4,3781.6,2.64434]
[1717097803933,3.0,3782.4,3781.6,2.64434]
[1717097804331,0.0347378,3782.3,3781.6,2.64434]
[1717097805043,3.0,3782.4,3781.6,2.64434]
[1717097805240,3.0,3782.4,3781.9,2.64413]
[1717097805552,0.03469602,3782.3,3781.9,2.64413]
[1717097805748,3.0,3782.8,3781.9,37.64413]
[1717097805948,3.0,3782.8,3781.9,2.64413]
[1717097806273,0.03339457,3782.7,3781.9,2.64413]
[1717097806441,0.03339457,3782.7,3782.1,2.64402]
[1717097806873,3.0,3782.8,3782.1,2.64402]
[1717097807074,3.0,3783.2,3782.1,2.64402]
[1717097808448,2.64336,3783.1,3782.1,2.64402]
[1717097808772,3.0,3783.0,3782.1,2.64402]
[1717097809651,0.03348236,3782.9,3782.1,2.64402]
[1717097809851,0.03348236,3782.9,3781.5,6.27155958]
[1717097809852,5.7237,3782.8,3781.5,6.27155958]
[1717097810093,3.01731734,3782.7,3781.5,6.27155958]
[1717097810378,2.64408,3782.1,3781.5,6.27155958]
[1717097810531,3.0,3782.0,3781.2,2.64461]
[1717097810733,0.03299367,3781.9,3781.2,2.64461]
[1717097810932,3.0,3782.0,3781.2,2.64461]
[1717097811364,2.64424,3781.8,3780.7,2.64494]
[1717097811633,2.9902,3781.9,3780.7,2.64494]
[1717097811634,2.64439,3781.6,3780.7,2.64494]
[1717097812063,3.03270196,3781.5,3780.7,2.64494]
[1717097812266,2.64456,3781.4,3780.6,6.27155958]
[1717097812686,3.03252574,3781.3,3780.6,6.27155958]
[1717097814240,3.03252574,3781.3,3780.6,6.90740465]
[1717097814458,0.03252574,3781.3,3780.6,6.90740465]
[1717097814662,0.03252574,3781.3,3780.7,37.6978898]
[1717097814909,2.64393,3782.3,3780.9,2.64483]
[1717097814910,3.0,3782.2,3780.9,2.64483]
[1717097815107,2.551,3783.1,3781.3,2.64456]
[1717097815108,2.64362,3782.7,3781.3,2.64456]
[1717097815309,2.64362,3782.7,3781.7,2.64431]
[1717097815465,0.03183775,3782.6,3781.8,35.0]
[1717097815664,3.1133,3783.0,3781.8,35.0]
[1717097816517,2.64348,3782.9,3781.7,2.64431]
[1717097816807,2.64363,3782.7,3781.7,37.64431]
[1717097817112,3.0,3782.6,3781.7,40.28991763]
[1717097817965,3.0,3782.9,3781.7,40.28991763]
[1717097819998,3.0,3782.9,3781.7,5.28991763]
[1717097820316,5.64352,3782.9,3781.7,2.64431]
[1717097820496,5.64352,3782.9,3781.8,35.0]
[1717097820809,2.64372,3782.6,3781.8,35.0]
[1717097820995,2.64386,3782.4,3781.3,2.64456]
[1717097821203,2.64403,3782.1,3781.3,2.64456]
[1717097821402,6.1381,3782.0,3780.9,2.64481]
[1717097821707,6.1381,3782.0,3780.6,0.63584507]
[1717097821708,3.0,3781.9,3781.2,2.64466]
[1717097822210,2.64391,3782.3,3781.2,2.64466]
[1717097822211,3.0,3782.2,3781.2,2.64466]
[1717097823311,0.01731734,3782.1,3781.2,2.64466]
[1717097823815,0.01731734,3782.1,3779.0,1.058694]
[1717097823816,3.1949,3779.8,3779.0,1.058694]
[1717097824113,2.64585,3779.5,3779.0,1.058694]
[1717097824316,2.64585,3779.5,3777.5,2.6472]
[1717097824317,2.64608,3779.2,3776.2,0.26062294]
[1717097824518,2.64608,3779.2,3775.7,4.57761208]
[1717097824520,0.01731734,3779.4,3775.7,0.82677089]
[1717097824521,0.27354004,3777.2,3775.7,0.82677089]
[1717097824684,0.01731734,3777.1,3775.6,0.82677089]
[1717097824891,2.6476,3777.0,3774.9,3.2712]
[1717097825082,3.0,3776.9,3774.9,5.92023]
[1717097825315,3.02875712,3776.9,3774.9,5.92023]
[1717097825527,3.02875712,3776.9,3774.1,2.64958]
[1717097825673,6.97114056,3776.9,3774.1,2.64958]
[1717097825868,6.8520074,3776.9,3774.1,2.64958]
[1717097826074,3.48919344,3776.8,3775.5,0.1320945]
[1717097826385,3.02327947,3776.7,3775.5,0.1320945]
[1717097826605,0.02776858,3776.7,3775.5,0.1320945]
[1717097827215,2.64727,3777.5,3775.5,35.1320945]
[1717097827385,0.02804359,3776.6,3775.6,2.64560763]
[1717097827591,2.64727,3777.5,3775.6,2.64560763]
[1717097827828,2.64727,3777.5,3775.9,2.64836]
[1717097828321,2.64745,3777.3,3775.6,2.64560763]
[1717097828621,2.64745,3777.3,3775.8,2.64842]
[1717097828622,3.0,3777.2,3775.8,2.64842]
[1717097830202,3.0,3777.2,3775.6,2.64560763]
[1717097830203,2.66485734,3777.1,3775.6,2.64560763]
[1717097830407,2.64754,3777.1,3775.6,2.64560763]
[1717097830683,2.64754,3777.1,3772.8,6.90963127]
[1717097830684,2.64754,3777.1,3772.8,0.0868911]
[1717097830685,2.64906,3775.0,3772.8,0.0868911]
[1717097831121,2.64958,3774.2,3772.9,35.0]
[1717097831322,0.01731734,3774.1,3772.8,0.0868911]
[1717097831526,2.65029,3773.2,3772.8,0.0868911]
[1717097831875,0.0248999,3773.1,3772.8,0.0868911]
[1717097832289,0.04221724,3773.1,3772.8,0.0868911]
[1717097832623,0.01731734,3773.1,3772.8,0.0868911]
[1717097832777,3.0,3773.8,3772.8,0.0868911]
[1717097832973,2.64982,3773.9,3772.8,0.0868911]
[1717097833233,3.0,3774.5,3772.8,2.7374311]
[1717097833373,3.129,3775.9,3772.8,2.7374311]
[1717097833374,2.64883,3775.3,3773.0,2.65039]
[1717097833607,2.64883,3775.3,3773.6,2.64998]
[1717097833992,5.64043,3776.0,3773.6,2.64998]
[1717097834286,5.64043,3776.0,3774.2,2.64954]
[1717097834471,2.64833,3776.0,3774.4,2.64938]
[1717097834678,2.64833,3776.0,3774.5,35.0]
[1717097834977,2.64787,3776.7,3774.6,2.64926]
[1717097835388,2.64809,3776.4,3774.6,2.64926]
[1717097835597,2.64809,3776.4,3774.9,2.64906]
[1717097835795,2.64809,3776.4,3775.0,2.64560763]
[1717097836321,2.64809,3776.4,3774.4,6.27155958]
[1717097836621,3.1168,3776.9,3774.5,37.64931]
[1717097837491,2.64776,3776.8,3774.5,37.64931]
[1717097838083,2.64776,3776.8,3775.0,2.64895]
[1717097838774,2.64776,3776.8,3775.1,35.0]
[1717097839135,2.64848,3775.8,3774.4,6.27155958]
[1717097839358,2.64848,3775.8,3772.9,3.72088311]
[1717097839359,2.64874,3775.4,3773.2,2.65023]
[1717097839503,2.64906,3775.0,3773.2,2.65023]
[1717097839703,2.65018,3773.4,3771.7,0.1262491]
[1717097839904,2.65027,3773.2,3771.7,0.1262491]
[1717097840108,2.65041,3773.0,3771.7,0.1262491]
[1717097840307,0.01731734,3772.9,3771.7,0.1262491]
[1717097840531,3.01731734,3772.9,3771.7,0.1262491]
[1717097842138,3.01731734,3772.9,3767.9,0.48747974]
[1717097842139,2.762,3772.0,3767.9,0.48747974]
[1717097842337,1.32213922,3770.0,3767.9,0.2260945]
[1717097842635,5.891,3770.4,3767.9,0.2260945]
[1717097842636,2.65272,3769.8,3768.0,2.65392]
[1717097842801,1.06227422,3769.9,3768.0,2.65392]
[1717097843439,2.6527,3769.8,3767.9,0.2260945]
[1717097843738,3.0,3769.7,3767.9,2.8800645]
[1717097843906,2.65214,3770.6,3768.4,2.65361]